{"text_format":"1","workbook":"xlsx","n_sheets":1,"sheets":["E1000699-v1"],"not_rendered":{"charts":0,"images":1,"macros":1,"external_links":0,"defined_names":11,"comments":1,"pivot_tables":0},"unopened":[],"bounds":{"document_bytes":16777216,"sheet_cells":100000,"rows_first":2000,"rows_last":500,"rows_between":2000,"halvings":0,"cell_chars":16384,"cell_head_chars":4096},"cells_cut":0,"cells_raw":0,"read":"whole","date_system":"1900"}

{"sheet":"E1000699-v1","index":0,"n_rows":216,"n_cols":27,"rows_kept":216,"cut":false,"hidden":false,"merged":[[10,2,10,4],[13,2,13,4],[11,2,11,4],[16,2,16,5],[29,22,36,22],[29,23,36,23],[29,25,36,25],[31,26,34,29],[36,10,36,13],[29,24,35,24],[248,22,248,25],[37,3,37,9],[38,19,38,20],[39,0,39,29],[145,0,145,29],[52,0,52,29]]}
[]
[null,"CALIFORNIA INSTITUTE OF TECHNOLOGY"]
[]
[]
[]
[null,"FORMAL DRAWING TREE & BILL OF MATERIALS REFERENCE DOCUMENT"]
[]
[null,"TITLE: ","aLIGO TCS Ring Heater Parent UHV Cable Assembly"]
[null,null,"for Production"]
[]
[null,"DOCUMENT CONTROL NO.:","E1000699",null,null,"-v6"]
[null,"RELATED DOC. CHANGE NO.: ","E1200893",null,null,"-v1"]
[]
[null,"CONTAINING the ASSEMBLY:","D1001517",null,null,"-v6"]
[]
[null,"AUTHOR: ","M. JACOBSON"]
[null,"DATE: ","2012-10-10"]
[]
[null,"PURPOSE: ","This document is the formal reference for necessary revisions of each child of the stated assemblies, and the total necessary quantities for all items."]
[]
[]
[]
[]
[]
[]
[]
[]
[]
[]
["Subsystem:","RH",null,null,null,null,null,null,null,null,null,null,null,null,null,null,null,null,null,null,null,null,"PDR","delta-PDR","FDR","XXX"]
["Reporter:","Mindy Jacobson"]
["Date:","2010-08-09",null,null,null,null,null,null,null,null,null,null,null,null,null,null,null,null,null,null,null,null,null,null,null,null,"RESERVED for\nPROCUREMENT TRACKING"]
[]
[null,"Total No. Dwgs = ",{"$f":"COUNT(U41:U145,U182:U225)","v":80}]
[null,"Aggregate %-complete = ",{"$f":"SUM(U41:U145,U182:U225)/C34","v":30.5}]
[]
[null,null,null,null,null,null,null,null,null,null,"QUANTITY"]
["DCN","NOTES","Level","INDENTURE CHART",null,null,null,null,null,null,"REQ'd","SPARE","TOT.","UNITS","DWG TREE REF. NO.","MATERIAL","DCC No.","NAME","TYPE","MODEL STATUS","DWG STATUS","SOURCE","REV.","REV.","REV.","REV."]
["No.",null,null,null,null,null,null,null,null,null,null,null,null,null,null,null,null,null,null,"% COMPLETE"]
["                     EXTERNAL TO VACUUM"]
[null,null,0,null,null,null,null,null,null,null,1,null,null,"EA",null,null,"D1002047","aLIGO TCS RH ELEMENT WINDING ASSY","TopAssy",90,0,"MTS","N/A","N/A","V1"]
[null,null,1,{"$f":"$C42","v":1},1,1,1,1,1,1,1,null,null,"EA",null,null,"D1000682","[TCS] RH GLASS ROD INSULATOR","PRT",100,100,"MTS","N/A","V1","V2"]
[null,null,1,1,1,1,1,1,1,1,{"$f":"2*0.125*PI()*300+2","v":237.61944901923448},null,null,"IN",null,null,null,"NICHROME WIRE, 24 BNC [DIA .5 MM]","PRT",0,0,"OTS","N/A"]
[null,null,1,1,1,1,1,1,1,1,1,null,null,"EA",null,null,"D1001819","RH ELEMENT RETAINER LEFT [9 O'CLOCK POSITION]","PRT",90,90,"MTS","N/A","N/A","V1"]
[null,null,1,1,1,1,1,1,1,1,1,null,null,"EA",null,null,"D1001858","RH ELEMENT RETAINER RIGHT [3 O'CLOCK POSITION]","PRT",90,90,"MTS","N/A","N/A","V1"]
[null,null,1,1,1,1,1,1,1,1,2,null,null,"EA",null,null,"D1001849","UPPER COPPER PLATE","PRT",90,90,"MTS","N/A","N/A","V1"]
[null,null,1,1,1,1,1,1,1,1,2,null,null,"EA",null,null,"D1001850","LOWER COPPER PLATE","PRT",90,90,"MTS","N/A","N/A","V1"]
[null,null,1,1,1,1,1,1,1,1,2,null,null,"EA",null,null,"C-210","SS SHCS-V #2-56 UNC 2A X .625 LONG","HW",100,0,"OTS","N/A","N/A"]
[null,null,1,1,1,1,1,1,1,1,2,null,null,"EA",null,null,"N-256","SS HEX NUT #2-56 UNC 2B","HW",100,0,"OTS","N/A","N/A"]
[null,null,1,1,1,1,1,1,1,1,1,null,null,"EA",null,null,"D1002045","aLIGO TCS RH ELEMENT WINDING TOOL","PRT",75,0,"MTS","N/A","N/A","V1"]
[null,null,1,1,1,1,1,1,1,1,4,null,null,"EA",null,null,"C-406","SS SHCS-V #4-40 UNC 2A X .375 LONG","HW",100,0,"OTS","N/A","N/A"]
[]
["                     ELECTRONICS"]
["{ }","OTS ?",0,{"$f":"$C54","v":0},0,0,0,0,0,0,"?",null,null,"EA",null,null,"DXXXXXXX","aLIGO TCS RH POWER SUPPLY","ASSY",0,0,null,"N/A"]
[null,null,1,{"$f":"$C55","v":1},1,1,1,1,1,1,null,null,null,"EA",null,null,null,"RH POWER SUPPLY ASSY HARDWARE","HW",0,0,"OTS","N/A"]
[null,null,1,1,1,1,1,1,1,1,null,null,null,"EA",null,null,null,"BOARD LAYOUT",null,0,0,"MTS","N/A"]
[null,null,1,1,1,1,1,1,1,1,null,null,null,"EA",null,null,null,"GERBER FILES",null,0,0,"MTS","N/A"]
[null,null,1,1,1,1,1,1,1,1,null,null,null,"EA",null,null,null,"SCEMATICS",null,0,0,"MTS","N/A"]
[null,null,1,1,1,1,1,1,1,1,null,null,null,"EA",null,null,null,"WIRING DIAGRAMS",null,0,0,"MTS","N/A"]
[]
["{ }",null,0,{"$f":"$C61","v":0},0,0,0,0,0,0,"?",null,null,"EA",null,null,"DXXXXXXX","aLIGO TCS RH DRIVER","ASSY",0,0,null,"N/A"]
[null,null,1,1,1,1,1,1,1,1,null,null,null,"EA",null,null,null,"RH DRIVER ASSY HARDWARE","HW",0,0,"OTS","N/A"]
[null,null,1,1,1,1,1,1,1,1,null,null,null,"EA",null,null,null,"BOARD LAYOUT",null,0,0,"MTS","N/A"]
[null,null,1,1,1,1,1,1,1,1,null,null,null,"EA",null,null,null,"GERBER FILES",null,0,0,"MTS","N/A"]
[null,null,1,1,1,1,1,1,1,1,null,null,null,"EA",null,null,null,"SCEMATICS",null,0,0,"MTS","N/A"]
[null,null,1,1,1,1,1,1,1,1,null,null,null,"EA",null,null,null,"WIRING DIAGRAMS",null,0,0,"MTS","N/A"]
[]
["{ }",null,0,{"$f":"$C68","v":0},0,0,0,0,0,0,"?",null,null,"EA",null,null,"DXXXXXXX","aLIGO TCS RH A-D CONVERTER","ASSY",0,0,null,"N/A"]
[null,null,1,1,1,1,1,1,1,1,null,null,null,"EA",null,null,null,"RH A-D CONVERTER ASSY HARDWARE","HW",0,0,"OTS","N/A"]
[null,null,1,1,1,1,1,1,1,1,null,null,null,"EA",null,null,null,"BOARD LAYOUT",null,0,0,"MTS","N/A"]
[null,null,1,1,1,1,1,1,1,1,null,null,null,"EA",null,null,null,"GERBER FILES",null,0,0,"MTS","N/A"]
[null,null,1,1,1,1,1,1,1,1,null,null,null,"EA",null,null,null,"SCEMATICS",null,0,0,"MTS","N/A"]
[null,null,1,1,1,1,1,1,1,1,null,null,null,"EA",null,null,null,"WIRING DIAGRAMS",null,0,0,"MTS","N/A"]
[]
["{ }",null,0,{"$f":"$C75","v":0},0,0,0,0,0,0,"?",null,null,"EA",null,null,"DXXXXXXX","aLIGO TCS RH D-A CONVERTER","ASSY",0,0,null,"N/A"]
[null,null,1,1,1,1,1,1,1,1,null,null,null,"EA",null,null,null,"RH D-A CONVERTER ASSY HARDWARE","HW",0,0,"OTS","N/A"]
[null,null,1,1,1,1,1,1,1,1,null,null,null,"EA",null,null,null,"BOARD LAYOUT",null,0,0,"MTS","N/A"]
[null,null,1,1,1,1,1,1,1,1,null,null,null,"EA",null,null,null,"GERBER FILES",null,0,0,"MTS","N/A"]
[null,null,1,1,1,1,1,1,1,1,null,null,null,"EA",null,null,null,"SCEMATICS",null,0,0,"MTS","N/A"]
[null,null,1,1,1,1,1,1,1,1,null,null,null,"EA",null,null,null,"WIRING DIAGRAMS",null,0,0,"MTS","N/A"]
[]
["{ }",null,0,{"$f":"$C82","v":0},0,0,0,0,0,0,"?",null,null,"?",null,null,"DXXXXXXX","aLIGO TCS RH IN-AIR CABLE ASSY","ASSY",0,0,null,"N/A"]
[null,null,null,null,null,null,null,null,null,null,null,null,null,null,null,null,null,null,null,0,0,null,"N/A"]
[null,null,null,null,null,null,null,null,null,null,null,null,null,null,null,null,null,null,null,0,0,null,"N/A"]
[]
["E1100950",null,0,{"$f":"$C86","v":0},0,0,0,0,0,0,12,3,{"$f":"K86+L86","v":15},"EA","D1000699",null,"D1001517","aLIGO TCS RH IN-VAC CABLE ASSY","ASSY",50,0,"MTS","N/A",null,"V6"]
[null,"WTG Group (PN is for qty 100)",1,1,1,1,1,1,1,1,10,90,{"$f":"K87+L87","v":100},"EA",null,"SS","PN A31189","STAINLESS STEEL CABLE TIE, 1/8 IN","ASSY",null,null,"OTS"]
[null,"Caltech Provided",1,1,1,1,1,1,1,1,1,0,1,"EA",null,"Al 6061","D1002420","CUSTOM BRACKET ADAPTER","PRT",null,null,"MTS",null,null,"V1"]
[null,"UC COMPONENTS",1,1,1,1,1,1,1,1,2,0,2,"EA",null,"SS","C810-N","SSHC, 8-32 UNC-2A x 5/8 LONG","HW",null,null,"OTS"]
[null,"UC COMPONENTS",1,1,1,1,1,1,1,1,2,0,2,"EA",null,"SS","WF-25-A","WASHER, FLAT, #8, .169 ID x .304 OD, .032 THK","HW",null,null,"OTS"]
["E1100950","AccuGlass PN 6-100000",1,1,1,1,1,1,1,1,1,null,1,"EA",null,null,"D1001518","CABLE ASSY, UPPER HEATER","ASSY",null,null,"MTS",null,null,"V7"]
[null,"OMEGA",2,2,2,2,2,2,2,2,17,null,17,"IN",null,"Cu/Fiberglass","PN EXGG-4CU-26S","Wire PN EXGG-4CU-26S, 4 CONDUCTORS","PRT",null,null,"OTS"]
[null,"OMEGA",3,3,3,3,3,3,3,3,1,null,1,"EA",null,"Pt / Ceramic","1PT100KN1515CLA","CERAMIC Pt RTD  ","PRT",null,null,"OTS"]
[null,null,3,3,3,3,3,3,3,3,"trc",null,1,"IN",null,"see MSDS","PN 110796","UHV SOLDER","PRT",null,null,"OTS"]
[null,null,3,3,3,3,3,3,3,3,"trc",null,0.5,"OZ",null,"see MSDS","PN 110797","SOLDER FLUX","PRT",null,null,"OTS"]
[null,"WTG Group (PN is for qty 100)",2,2,2,2,2,2,2,2,2,null,2,"EA",null,"SS","PN A31189","STAINLESS STEEL CABLE TIE, 1/8 IN","PRT",null,null,"OTS"]
[null,"Caltech Provided",2,{"$f":"$C97","v":2},2,2,2,2,2,2,19,null,{"$f":"K97+L97","v":19},"IN",null,"Peek","PN 111167","BRAID, PEEK DRAWN MONOFILAMENT SHIELDING","PRT",null,null,"OTS"]
[null,null,2,2,2,2,2,2,2,2,2,null,2,"EA",null,null,"PN 602258","CUSTOM SHIELDED, TWISTED WIRE HARNESS","ASSY",null,null,"OTS"]
[null,null,3,3,3,3,3,3,3,3,19,null,19,"IN",null,"Cu/Kapton/SS","PN 112734","SHIELDED 2-TWISTED PAIR WIRE, ACCUGLASS","PRT",null,null,"OTS"]
[null,null,3,3,3,3,3,3,3,3,1,null,1,"EA",null,"Cu/SS/Peek","PN 602257","USER END 400 CONNECTOR ASSY","PRT",null,null,"OTS"]
[null,null,2,2,2,2,2,2,2,2,1,null,1,"EA",null,"Peek",null,"UHV MALE DB25 CONNECTOR","PRT",null,null,"MTS",null,null,"B"]
[null,null,2,2,2,2,2,2,2,2,1,null,1,"EA",null,"SS",null,"DB25 3-PORT CONNECTOR BACKSHELL W/ VENTHOLE","PRT",null,null,"MTS",null,null,"B"]
[null,"GLENAIR",2,2,2,2,2,2,2,2,2,null,2,"EA",null,null,"600-052","STANDARD BRAID CLAMP, GLENAIR","PRT"]
["E1100950","AccuGlass PN 6-100001",1,1,1,1,1,1,1,1,1,null,1,"EA",null,null,"D1001519","CABLE ASSY, LOWER HEATER","ASSY",null,null,"MTS",null,null,"V6"]
[null,"OMEGA",2,2,2,2,2,2,2,2,27,null,27,"IN",null,"Cu/Fiberglass","PN EXGG-4CU-26S","Wire PN EXGG-4CU-26S, 4 CONDUCTORS","PRT",null,null,"OTS"]
[null,"OMEGA",3,3,3,3,3,3,3,3,1,null,1,"EA",null,"Pt / Ceramic","1PT100KN1515CLA","CERAMIC Pt RTD  ","PRT",null,null,"OTS"]
[null,null,3,3,3,3,3,3,3,3,"trc",null,1,"IN",null,"see MSDS","PN 110796","UHV SOLDER","PRT",null,null,"OTS"]
[null,null,3,3,3,3,3,3,3,3,"trc",null,0.5,"OZ",null,"see MSDS","PN 110797","SOLDER FLUX","PRT",null,null,"OTS"]
[null,"WTG Group (PN is for qty 100)",2,2,2,2,2,2,2,2,2,null,{"$f":"K109+L109","v":2},"EA",null,"SS","PN A31189","STAINLESS STEEL CABLE TIE, 1/8 IN","PRT",null,null,"OTS"]
[null,"Caltech Provided",2,{"$f":"$C110","v":2},2,2,2,2,2,2,30,null,{"$f":"K110+L110","v":30},"IN",null,"Peek","PN 111167","BRAID, PEEK DRAWN MONOFILAMENT SHIELDING","PRT",null,null,"OTS"]
[null,null,2,2,2,2,2,2,2,2,2,null,2,"EA",null,null,"PN 602258","CUSTOM SHIELDED, TWISTED WIRE HARNESS","ASSY",null,null,"OTS"]
[null,null,3,3,3,3,3,3,3,3,30,null,30,"IN",null,"Cu/Kapton/SS","PN 112734","SHIELDED 2-TWISTED PAIR WIRE, ACCUGLASS","PRT",null,null,"OTS"]
[null,null,3,3,3,3,3,3,3,3,1,null,1,"EA",null,"Cu/SS/Peek","PN 602257","USER END 400 CONNECTOR ASSY","PRT",null,null,"OTS"]
[null,null,2,2,2,2,2,2,2,2,1,null,1,"EA",null,"Peek",null,"UHV MALE DB25 CONNECTOR","PRT",null,null,"MTS",null,null,"B"]
[null,null,2,{"$f":"$C115","v":2},2,2,2,2,2,2,1,null,1,"EA",null,"SS",null,"DB25 3-PORT CONNECTOR BACKSHELL W/ VENTHOLE","PRT",null,null,"MTS",null,null,"B"]
[null,"GLENAIR",2,2,2,2,2,2,2,2,2,null,2,"EA",null,null,"600-052","STANDARD BRAID CLAMP, GLENAIR","PRT"]
["E1100950","AccuGlass PN 6-100002",1,1,1,1,1,1,1,1,1,null,1,"EA",null,null,"D1001520","LOWER QUAD TERM BLOCK TO UPPER QUAD TERM BLOCK","ASSY",null,null,"MTS",null,null,"V5"]
[null,"Caltech Provided",2,2,2,2,2,2,2,2,1,null,1,"EA",null,"Al 6061","D1001755","CUSTOM BRKT, 25D CONNECTOR INTERFACE","PRT",null,null,"MTS",null,null,"v1"]
[null,"UC COMPONENTS",3,3,3,3,3,3,3,3,2,null,2,"EA",null,"SS","C810-N","SSHC, 8-32 UNC-2A x 5/8 LONG","HW",null,null,"OTS"]
[null,"UC COMPONENTS",3,3,3,3,3,3,3,3,2,null,2,"EA",null,"SS, Ag Plated","WF-08-A","FLAT WASHER, #8 x .169 ID x .304 OD, .032 THICK, Ag PLATED SS","HW",null,null,"OTS"]
[null,"UC COMPONENTS",2,2,2,2,2,2,2,2,4,null,4,"EA",null,"SS","C416-N","SSHC, #4-40 UNC-2A X 1 LONG, STAINLESS","HW",null,null,"OTS"]
[null,"UC COMPONENTS",2,2,2,2,2,2,2,2,4,null,4,"EA",null,"SS","C414-N","SSHC, #4-40 UNC-2A X 7/8 LONG, STAINLESS","HW",null,null,"OTS"]
[null,null,2,2,2,2,2,2,2,2,2,null,2,"EA",null,"Peek",null,"UHV FEMALE 25D CONNECTOR","PRT",null,null,"MTS",null,null,"B"]
[null,null,2,2,2,2,2,2,2,2,2,null,2,"EA",null,"SS",null,"UHV DB25 BACKSHELL, SINGLE PORT W/ VENT","PRT",null,null,"MTS",null,null,"B"]
[null,null,2,2,2,2,2,2,2,2,120,null,120,"IN",null,"Cu/Kapton/SS","PN 112738","SHIELDED 6-TWISTED PAIR WIRE, ACCUGLASS","PRT",null,null,"OTS"]
[null,null,2,2,2,2,2,2,2,2,120,null,120,"IN",null,"Peek",111167,"BRAID, PEEK DRAWN MONOFILAMENT SHIELDING","PRT",null,null,"OTS"]
[null,"Caltech Provided",2,2,2,2,2,2,2,2,8,null,8,"EA",null,"Ceramic","D1002345","ELECTRICAL CONNECTOR BUSHING","PRT",null,null,"MTS",null,null,"V2"]
[null,"AccuGlass PN 6-100003-A",2,2,2,2,2,2,2,2,4,null,4,"EA",null,"Peek","D1002346","ELECTRICAL CONNECTOR NUT PLATE","PRT",null,null,"MTS",null,null,"V1"]
[null,null,2,2,2,2,2,2,2,2,1,null,1,"EA",null,"Peek",null,"UHV MALE 25D CONNECTOR","PRT",null,null,"MTS",null,null,"B"]
[null,null,2,2,2,2,2,2,2,2,1,null,1,"EA",null,"SS",null,"UHV DB25 BACKSHELL, TWO PORTS W/ VENT","PRT",null,null,"MTS",null,null,"B"]
["E1100950","AccuGlass PN 6-100004",1,{"$f":"$C131","v":1},1,1,1,1,1,1,1,null,1,"EA",null,null,"D1001521","TERM BLOCK TO UPPER QUAD ","ASSY",null,null,"MTS",null,null,"V6"]
[null,"Caltech Provided",2,2,2,2,2,2,2,2,1,null,1,"EA",null,"Al 6061","D1001756","CUSTOM BRKT, 25D CONNECTOR INTERFACE","PRT",null,null,"MTS",null,null,"V2"]
[null,"UC COMPONENTS",3,3,3,3,3,3,3,3,2,null,2,"EA",null,"SS","C2012","SSHC, 1/4-20 UNC-2A X 3/4 LONG","HW",null,null,"OTS"]
["E1200893-v1","UC COMPONENTS",3,3,3,3,3,3,3,3,4,null,4,"EA",null,"Al 6061","D1102074","NUT PLATE, UPPER UHV RING HEATER CABLE CONN BRKT","PRT",null,null,"MTS",null,null,"V2"]
[null,null,4,4,4,4,4,4,4,4,2,2,4,"EA",null,"Nitronic 60","1185-4EN250","HELICOIL INSERT, 1/4-20 x .25 LONG","HW",null,null,"OTS"]
["E1200893-v1","UC COMPONENTS",3,3,3,3,3,3,3,3,2,null,2,"EA",null,"SS","D1102077","WASHER PLATE","PRT",75,0,"MTS","N/A","N/A","V2"]
[null,null,2,2,2,2,2,2,2,2,1,null,1,"EA",null,"Peek",null,"UHV FEMALE 25D CONNECTOR","PRT",0,0,"MTS","N/A",null,"B"]
[null,null,2,2,2,2,2,2,2,2,1,null,1,"EA",null,"SS",null,"UHV DB25 BACKSHELL, SINGLE PORT, W/ VENT AND FLANGE","PRT",0,0,"MTS","N/A",null,"B"]
[null,null,2,2,2,2,2,2,2,2,1,null,1,"EA",null,"Peek",null,"UHV MALE 25D CONNECTOR","PRT",100,0,"MTS","N/A",null,"B"]
[null,null,2,2,2,2,2,2,2,2,1,null,1,"EA",null,"SS",null,"UHV DB25 BACKSHELL, SINGLE PORT, W/ VENT AND FLANGE","PRT",100,100,"MTS","N/A",null,"B"]
[null,null,2,2,2,2,2,2,2,2,114,null,114,"IN",null,"Cu/Kapton/SS","PN 112143","SHIELDED 12-TWISTED PAIR WIRE, ACCUGLASS PN 112143","PRT",100,0,"OTS","N/A"]
[null,"Caltech Provided",2,2,2,2,2,2,2,2,114,null,114,"IN",null,"Peek",111167,"BRAID, PEEK DRAWN MONOFILAMENT SHIELDING","PRT",75,0,"OTS","N/A","N/A"]
[null,"Caltech Provided",2,2,2,2,2,2,2,2,4,null,4,"EA",null,"Ceramic","D1002345","ELECTRICAL CONNECTOR BUSHING","PRT",0,0,"MTS","N/A",null,"V2"]
[null,"AccuGlass PN 6-100003-A",2,2,2,2,2,2,2,2,2,null,2,"EA",null,"Peek","D1002346","ELECTRICAL CONNECTOR NUT PLATE","PRT",0,0,"MTS","N/A",null,"V1"]
[null,"UC COMPONENTS",2,2,2,2,2,2,2,2,4,null,4,"EA",null,"SS","C-414-N","SSHC, #4-40 UNC-2A X 7/8 LONG","HW",100,0,"OTS","N/A"]
["                     INTERNAL TO VACUUM"]
["E900345-v1",null,0,{"$f":"$C147","v":0},0,0,0,0,0,0,1,null,null,"EA",null,null,"D0901269","ADV_LIGO_TCS_RING_HEATER_AND_SHIELD_ASSEM","TopAssy",100,100,"MTS","v2",null,null,null,{"$f":"1948.5*15","v":29227.5}]
[null,null,1,1,1,1,1,1,1,1,1,null,null,"EA",1,null,"D0902351","ADLIGO TCS RING HEATER SHIELD","PRT",100,100,"MTS","V1"]
[null,null,1,1,1,1,1,1,1,1,1,null,null,"EA",2,null,"D0902408","ADLIGO TCS RING HEATER BACK PLATE RH","PRT",100,90,"MTS","N/A"]
[null,null,1,1,1,1,1,1,1,1,1,null,null,"EA",3,null,"D0902409","ADLIGO TCS RING HEATER BACK PLATE LH","PRT",100,90,"MTS","N/A"]
[null,null,1,1,1,1,1,1,1,1,2,null,null,"EA",4,null,"D0902410","ADLIGO TCS RING HEATER BLOCK","PRT",100,90,"MTS","N/A"]
[null,"WATLOW (?)",1,1,1,1,1,1,1,1,1,null,null,"EA",5,null,"D0901279","TCS_RING_HEATER_ELEMENT","PRT",100,0,"OTS","N/A"]
[null,"QTY INCL (1) SPR",1,1,1,1,1,1,1,1,9,null,null,"EA",6,null,null,"#4-40X.188 FLT HD SKT SCR, SST [18-8 SST]","HW",100,0,"OTS"]
["E900345-v1","LASTI retrofit assy",0,0,0,0,0,0,0,0,null,null,null,"EA",null,null,"D0902447","LASTI TCS RING HEATER INSTALLATION RETROFIT","ASSY",100,100,"MTS","V1","N/A"]
[null,null,1,1,1,1,1,1,1,1,1,null,null,"EA","{ REF }",null,"D0902351","ADLIGO TCS RING HEATER SHIELD","PRT",100,100,"MTS","V1"]
["{ }","CONSTRAINT",2,2,2,2,2,2,2,2,1,null,null,"EA","{ }",null,"D1000270","TCS ALLOWABLE RH ELEMENT ENVELOPE","VOL",100,100,"OTS","V1"]
[null,null,1,1,1,1,1,1,1,1,1,null,null,"EA",1,null,"D0902448","LASTI TCS RING HEATER BACK PLATE RH","PRT",100,100,"MTS","V1"]
[null,null,1,1,1,1,1,1,1,1,1,null,null,"EA",2,null,"D0902449","LASTI TCS RING HEATER BACK PLATE LH","PRT",100,100,"MTS","V1"]
[null,"DWG.TR E900344-V1",1,1,1,1,1,1,1,1,2,null,null,"EA","{ REF }",null,"D0902450","LASTI TCS RING HEATER BLOCK","PRT",100,100,"MTS","V1"]
[null,null,1,1,1,1,1,1,1,1,4,null,null,"EA","{ }",null,null,"FH SCR, PHILIPS, #4-40 X 3/16 LG, SST","HW",100,0,"OTS"]
[null,null,1,1,1,1,1,1,1,1,4,null,null,"EA","{ }",null,null,"FH SCR, PHILIPS, #2-56 X 3/16 LG, SST","HW",100,0,"OTS"]
["{ }","QTYs ARE PER OPTIC",0,0,0,0,0,0,0,0,2,null,null,"EA",null,null,"D1000978","ALIGO [TCS] RING HEATER ASSY","TopAssy",90,0,"MTS","N/A","V1","N/A"]
["E1000154-v1",null,1,1,1,1,1,1,1,1,1,null,null,"EA",null,null,"D1000969","ALIGO TCS MONOLITH RH SHIELD","PRT",100,90,"MTS","N/A","V2","N/A",null,{"$f":"2780*30","v":83400}]
["{ }","CONSTRAINT",2,2,2,2,2,2,2,2,1,null,null,"EA",null,null,"D1000270","TCS ALLOWABLE RH ELEMENT ENVELOPE","VOL",100,100,"OTS","N/A","V1"]
[null,"either this OR D1000945",1,1,1,1,1,1,1,1,1,null,null,"EA",null,null,"D1001187","TCS RING HEATER ELEMENT ASSEMBLY, LASTI","ASSY",50,0,"MTS","N/A","V1"]
[null,null,2,2,2,2,2,2,2,2,1,null,null,"EA",null,null,"D1000682","[TCS] RH GLASS ROD INSULATOR","PRT",100,100,"MTS","N/A",null,null,null,{"$f":"100*30","v":3000}]
[null,null,2,2,2,2,2,2,2,2,2,null,null,"EA",null,null,"D1001063","GLASS ROD RETAINER","PRT",90,0,"MTS","N/A"]
[null,null,2,2,2,2,2,2,2,2,60,null,null,"IN",null,null,null,"NICHROME WIRE, 24 BNC [DIA .5 MM]","PRT",0,0,"OTS","N/A"]
[null,"either this OR D1001187",1,1,1,1,1,1,1,1,1,null,null,"EA",null,null,"D1000945","ALIGO TEST MASS RING HEATER ASSEMBLY [M.A._UF]","HW",90,90,"MTS","N/A","V1",null,null,{"$f":"4000*30","v":120000}]
[null,null,2,2,2,2,2,2,2,2,2,null,null,"EA",null,null,"D1000970","ALIGO TEST MASS RING HEATER SUPPORT BLOCK","PRT",100,90,"MTS","N/A"]
[null,null,2,2,2,2,2,2,2,2,2,null,null,"EA",null,null,"D1000956","ALIGO TEST MASS RING HEATER WIRE INTERSECTION BLOCK","PRT",100,90,"MTS","N/A"]
[null,null,2,{"$f":"$C172","v":2},2,2,2,2,2,2,4,null,null,"EA",null,null,"D1001016","ALIGO TEST MASS RING HEATER WIRE PLATE","PRT",100,90,"MTS","N/A"]
[null,null,2,2,2,2,2,2,2,2,1,null,null,"EA",null,null,"D1000943","ALIGO TEST MASS RING HEATER INNER RING","PRT",100,90,"MTS","N/A","V2","N/A",null,{"$f":"625*30","v":18750}]
[null,null,2,2,2,2,2,2,2,2,1,null,null,"EA",null,null,"D1000944","ALIGO TEST MASS RING HEATER OUTER RING","PRT",100,90,"MTS","N/A","V2","N/A",null,{"$f":"625*30","v":18750}]
[null,null,2,2,2,2,2,2,2,2,3,null,null,"EA",null,null,null,"SS FHCS 2-56 X .25 L","HW",100,0,"OTS","N/A"]
[null,"Ortech",2,2,2,2,2,2,2,2,2,null,null,"EA",null,null,null,"ORTECH CERAMIC SET SCREW 2-56 X .25 L","HW",100,0,"OTS","N/A"]
[null,null,2,{"$f":"$C177","v":2},2,2,2,2,2,2,4,null,null,"EA",null,null,null,"SS VENTED SHCS 2-56 X .1875 L","HW",100,0,"OTS","N/A"]
[null,null,2,2,2,2,2,2,2,2,4,null,null,"IN",null,null,null,"INSULATED COPPER WIRE, 28 AWG","PRT",100,0,"OTS","N/A"]
[null,null,1,1,1,1,1,1,1,1,2,null,null,"EA",null,null,"Dxxxxxxx","IN-LINE UHV CONNECTOR ASSY","ASSY",100,0,"MTS","N/A","N/A","V1"]
[null,"AccuGlass Inc",2,2,2,2,2,2,2,2,1,null,null,"EA",null,null,"PN 100171","ACCUGLASS CONNECTOR 100171","PRT",100,0,"OTS","N/A","N/A"]
[null,null,1,1,1,1,1,1,1,1,1,null,null,"EA",null,null,"D1001516","WIRE GUIDE BUSHING","PRT",100,0,"MTS","N/A","N/A","V1"]
[]
[null,"PER OPTIC QTY",0,null,null,null,null,null,null,null,1,1,{"$f":"SUM(K183:L183)","v":2},"EA",null,null,"D1002027","aLIGO SYS-TCS INTEGRATION OF RH WITH TM","TopAssy",90,0,"MTS","N/A","N/A","V1"]
["E1000291",null,1,{"$f":"$C184","v":1},1,1,1,1,1,1,1,0,{"$f":"SUM(K184:L184)","v":1},"EA","E1000295",null,"D1001838","aLIGO [TCS] UPPER SEGMENT RING HEATER ASSY","ASSY",100,90,"MTS","N/A","N/A","V2"]
[null,null,2,2,2,2,2,2,2,2,1,0,{"$f":"SUM(K185:L185)","v":1},"EA",null,"Al, Au-coated","D1001679","ALIGO TCS UPPER MONOLITH RH SHIELD","PRT",100,90,"MTS","N/A","N/A","V3",null,{"$f":"3000*15","v":45000}]
[null,null,2,null,null,2,null,null,null,null,1,1,2,"EA",null,"glass","D1002538","SIMPLIFIED GLASS FORMER","PRT",100,100,"MTS","N/A","V1","V2"]
[null,"Caltech provided",2,2,2,2,2,2,2,2,{"$f":"(2*0.125*PI()*300+2)/12","v":19.801620751602872},{"$f":"K187","v":19.801620751602872},{"$f":"SUM(K187:L187)","v":39.603241503205744},"FT",null,"NiCr",null,"NICHROME WIRE, 24 BNC [DIA .5 MM]","PRT",0,0,"OTS","N/A"]
[null,null,2,2,2,2,2,2,2,2,1,0,{"$f":"SUM(K188:L188)","v":1},"EA",null,"Macor","D1002543","RH ELEMENT CONNECTOR, SIMPLIFIED LEFT","PRT",100,90,"MTS","N/A","N/A","V2"]
[null,null,2,2,2,2,2,2,2,2,1,0,1,"EA",null,"Macor","D1002544","RH ELEMENT CONNECTOR, SIMPLIFIED RIGHT","PRT",100,90,"MTS","N/A","N/A","V2"]
[null,"Caltech provides raw material",2,2,2,2,2,2,2,2,1,1,2,"EA",null,"Altima KVS","D1002986","RH ELEMENT SPACER","PRT",100,100,"MTS","N/A","N/A","V1","V1"]
[null,null,2,2,2,2,2,2,2,2,1,1,{"$f":"SUM(K191:L191)","v":2},"EA",null,"Macor","D1003009","RH ELEMENT SPACER WHEEL","PRT",100,100,"MTS","N/A","N/A","V1"]
[null,"Caltech provided",2,2,2,2,2,2,2,2,1,1,2,"EA",null,"Stainless Steel","T-402","SS Set Screw #4-40 x .125, vented","HW",null,null,"OTS"]
[null,null,2,2,2,2,2,2,2,2,2,2,4,"EA",null,"Cu 110 Alloy","D1001849","UPPER COPPER PLATE","PRT",100,90,"MTS","N/A","N/A","V1"]
[null,null,2,2,2,2,2,2,2,2,2,2,4,"EA",null,"Cu 110 Alloy","D1001850","LOWER COPPER PLATE","PRT",100,90,"MTS","N/A","N/A","V2"]
[null,"Caltech provided",2,2,2,2,2,2,2,2,2,2,4,"EA",null,"Stainless Steel","C-210","SS SHCS-V #2-56 UNC 2A X .625 LONG","HW",100,0,"OTS","N/A","N/A"]
[null,null,2,2,2,2,2,2,2,2,2,2,4,"EA",null,"Stainless Steel","N-256","SS HEX NUT #2-56 UNC 2B","HW",100,0,"OTS","N/A","N/A"]
[null,null,2,2,2,2,2,2,2,2,4,2,6,"EA",null,"Stainless Steel","FA-404","SS FSHCS-V #4-40 UNC 2A X .25 LONG","HW",100,0,"OTS","N/A","N/A"]
[null,null,2,2,2,2,2,2,2,2,12,6,18,"IN",null,"PFA coated Cu","CZ1105","PFA COATED 28 AWG Cu WIRE, 2x 6 IN LENGTH","PRT",0,0,"OTS","N/A","N/A"]
[null,null,3,3,3,3,3,3,3,3,2,2,4,"EA",null,"Cu, Au-coated  ","PN 100170","ACCUGLASS PIN CONTACT 100170, MALE TYPE T-1, CRIMPED","PRT",100,100,"OTS","N/A","N/A"]
["E1000291",null,1,1,1,1,1,1,1,1,1,0,1,"EA","E1000295",null,"D1001895","aLIGO [TCS] LOWER SEGMENT RING HEATER ASSY","ASSY",100,90,"MTS","N/A","N/A","V2"]
[null,null,2,{"$f":"$C201","v":2},2,2,2,2,2,2,1,0,1,"EA",null,"Al, Au-coated","D1001680","ALIGO TCS UPPER MONOLITH RH SHIELD","PRT",100,90,"MTS","N/A","N/A","V3",null,{"$f":"3000*15","v":45000}]
[null,null,2,null,null,2,null,null,null,null,1,1,{"$f":"SUM(K202:L202)","v":2},"EA",null,"glass","D1002538","SIMPLIFIED GLASS FORMER","PRT",100,100,"MTS","N/A","V1","V2"]
[null,"Caltech provided",2,2,2,2,2,2,2,2,{"$f":"(2*0.125*PI()*300+2)/12","v":19.801620751602872},{"$f":"K203","v":19.801620751602872},{"$f":"SUM(K203:L203)","v":39.603241503205744},"FT",null,"NiCr",null,"NICHROME WIRE, 24 BNC [DIA .5 MM]","PRT",0,0,"OTS","N/A"]
[null,null,2,2,2,2,2,2,2,2,1,0,{"$f":"SUM(K204:L204)","v":1},"EA",null,"Macor","D1002543","RH ELEMENT CONNECTOR, SIMPLIFIED LEFT","PRT",100,90,"MTS","N/A","N/A","V2"]
[null,null,2,{"$f":"$C205","v":2},2,2,2,2,2,2,1,0,1,"EA",null,"Macor","D1002544","RH ELEMENT CONNECTOR, SIMPLIFIED RIGHT","PRT",100,90,"MTS","N/A","N/A","V2"]
[null,"Caltech provides raw material",2,2,2,2,2,2,2,2,1,0,1,"EA",null,"Altima KVS","D1002986","RH ELEMENT SPACER","PRT",100,100,"MTS","N/A","N/A","V1","V1"]
[null,null,2,2,2,2,2,2,2,2,1,1,2,"EA",null,"Macor","D1003009","RH ELEMENT SPACER WHEEL","PRT",100,100,"MTS","N/A","N/A","V1"]
[null,"Caltech provided",2,{"$f":"$C208","v":2},2,2,2,2,2,2,1,1,2,"EA",null,"Stainless Steel","T-402","SS Set Screw #4-40 x .125, vented","HW",null,null,"OTS"]
[null,null,2,2,2,2,2,2,2,2,2,2,4,"EA",null,"Cu 110 Alloy","D1001849","UPPER COPPER PLATE","PRT",100,90,"MTS","N/A","N/A","V1"]
[null,null,2,2,2,2,2,2,2,2,2,2,4,"EA",null,"Cu 110 Alloy","D1001850","LOWER COPPER PLATE","PRT",100,90,"MTS","N/A","N/A","V2"]
[null,"Caltech provided",2,2,2,2,2,2,2,2,2,2,4,"EA",null,"Stainless Steel","C-210","SS SHCS-V #2-56 UNC 2A X .625 LONG","HW",100,0,"OTS","N/A","N/A"]
[null,null,2,2,2,2,2,2,2,2,2,2,4,"EA",null,"Stainless Steel","N-256","SS HEX NUT #2-56 UNC 2B","HW",100,0,"OTS","N/A","N/A"]
[null,null,2,2,2,2,2,2,2,2,4,2,6,"EA",null,"Stainless Steel","FA-404","SS FSHCS-V #4-40 UNC 2A X .25 LONG","HW",100,0,"OTS","N/A","N/A"]
[null,null,2,2,2,2,2,2,2,2,12,6,18,"IN",null,"PFA coated Cu","CZ1105","PFA COATED 28 AWG Cu WIRE, 2x 6 IN LENGTH","PRT",0,0,"OTS","N/A","N/A"]
[null,null,3,3,3,3,3,3,3,3,2,2,4,"EA",null,"Cu, Au-coated  ","PN 100170","ACCUGLASS PIN CONTACT 100170, MALE TYPE T-1, CRIMPED","PRT",100,100,"OTS","N/A","N/A"]
[null,null,null,null,null,null,null,null,null,null,null,null,null,null,null,"Cu, Au-coated  "]